Cogmind - Beta 13 @@@ ROGUE MODE // 2024.04.01 @ 21:10:22 Player: aRandomVoice Result: Destroyed by Y-45 Defender with Beam Rifle Performance ------------- Evolutions (2) 1000 Regions Visited (6) 1200 Robots Destroyed (24) 120 Value Destroyed (714) 714 Prototype IDs (0) 0 Alien Tech Used (0) 0 Bonus (0) 0 TOTAL SCORE: 3034 Bonus ------- None Cogmind --------- Core Integrity 0/550 Matter 236/300 Energy 100/100 System Corruption 5% Temperature Cool (27) Movement Core (50) Location -8/Storage Parts ------- > --- POWER (2) -------- (None) > --- PROPULSION (2) --- (None) > --- UTILITY (4) ------ Signal Interpreter Terrain Scan Processor Improved Terrain Scan Processor > --- WEAPON (3) ------- (None) > --- INVENTORY (5) ---- (None) Peak State ------------ > --- POWER ------------ Light Ion Engine > --- PROPULSION ------- Compact Wheel Compact Wheel > --- UTILITY ---------- Structural Scanner Signal Interpreter Terrain Scan Processor Advanced Targeting Computer > --- WEAPON ----------- Improved Light Cannon Flak Cannon > --- INVENTORY -------- (None) [Rating: 15] Favorites ----------- Power Ion Engine Engine Ion Engine Propulsion Aluminum Leg Leg Aluminum Leg Wheel Compact Wheel Utility Signal Interpreter Device Structural Scanner Processor Signal Interpreter Weapon Light Assault Rifle Energy Gun Medium Laser Ballistic Gun Light Assault Rifle Ballistic Cannon Flak Cannon Launcher Grenade Launcher Special Weapon Plasma Cutter Special Melee Weapon Improved Datajack Build | -11 -10 -10 -10 -9 -8 -8 ------- Run | Yrd Mat Min Exi Min Mat Sto Slots Evolved 4 | . . . . . 4 . Power 1 | . . . . . 1 . Propulsion . | . . . . . . . Utility 2 | . . . . . 2 . Weapon 1 | . . . . . 1 . Parts Attached 41 | 6 14 2 . 6 6 7 Power 6 | 2 1 . . 1 . 2 Engine 6 | 2 1 . . 1 . 2 Core . | . . . . . . . Reactor . | . . . . . . . Propulsion 11 | 2 5 . . 3 . 1 Treads . | . . . . . . . Leg 7 | 2 5 . . . . . Wheel 4 | . . . . 3 . 1 Hover . | . . . . . . . Flight . | . . . . . . . Utility 10 | . 5 . . . 3 2 Device 4 | . 2 . . . 1 1 Storage . | . . . . . . . Processor 6 | . 3 . . . 2 1 Hackware . | . . . . . . . Protection . | . . . . . . . Artifact . | . . . . . . . Weapon 14 | 2 3 2 . 2 3 2 Energy Gun 1 | 1 . . . . . . Energy Cannon . | . . . . . . . Ballistic Gun 7 | 1 3 2 . . 1 . Ballistic Cannon 2 | . . . . . 2 . Launcher 2 | . . . . 2 . . Special Weapon 1 | . . . . . . 1 Impact Weapon . | . . . . . . . Slashing Weapon . | . . . . . . . Piercing Weapon . | . . . . . . . Special Melee Weapon 1 | . . . . . . 1 Unidentified Prototypes . | . . . . . . . Parts Lost 21 | . 2 . . 5 7 7 Power 4 | . . . . 1 1 2 Propulsion 4 | . . . . 1 2 1 Utility 5 | . 1 . . 1 1 2 Weapon 8 | . 1 . . 2 3 2 Highest Loss Streak 4 | . 2 . . 4 4 4 To Critical Strikes . | . . . . . . . Average Slot Usage (%) 80 | . 85 100 100 87 64 35 Engine 11 | . 14 14 14 11 3 3 Leg 20 | . 28 28 28 23 . . Wheel 2 | . . . . 1 13 1 Device 4 | . 8 . . . 8 3 Processor 18 | . 5 28 28 24 26 24 Energy Gun 3 | . 9 . . . . . Ballistic Gun 17 | . 18 28 28 24 1 . Ballistic Cannon 1 | . . . . . 11 . Naked Turns . | . . . . . . . Heaviest Build 11 | 9 10 7 7 7 11 8 Greatest Support 32 | 20 20 20 20 32 32 12 Greatest Overweight (x) 3 | . . . . . 3 2 Average Overweight (x) . | . . . . . . . Largest Inventory Capacity 5 | 5 5 5 5 5 5 5 Average Capacity 5 | 5 5 5 5 5 5 5 Most Carried 4 | 3 4 4 2 4 2 3 Average Carried 1 | 1 1 2 2 2 . . Final Capacity 5 | 5 5 5 5 5 5 5 Final Carried 3 | . 2 2 2 3 2 . Class Distribution -------------------- 78% | Scavenger-Mutant 21% | Mutant Dominant Class ---------------- Scavenger-Mutant | -10/Materials Scavenger-Mutant | -10/Mines Scavenger-Mutant | -10/Exiles Scavenger-Mutant | -9/Mines Scavenger-Mutant | -8/Materials Mutant | -8/Storage Resources | -11 -10 -10 -10 -9 -8 -8 ----------- Run | Yrd Mat Min Exi Min Mat Sto Matter Collected 796 | 226 199 21 . 137 57 156 Remotely . | . . . . . . . Salvage Created 654 | . 400 36 . 25 135 58 Parts 40 | . 28 6 . . 3 3 Haulers Intercepted . | . . . . . . . Recyclers Shooed 1 | . 1 . . . . . Parts Field Recycled . | . . . . . . . Retrieved Matter . | . . . . . . . Parts Self-Destructed . | . . . . . . . Prevented . | . . . . . . . Kills | -11 -10 -10 -10 -9 -8 -8 ------- Run | Yrd Mat Min Exi Min Mat Sto Combat Hostiles Destroyed 28 | . 11 3 . 7 6 1 Guns 14 | . 10 3 . 1 . . Cannons 7 | . . . . . 6 1 AOE 7 | . 1 . . 6 . . Classes Destroyed 7 | . 4 . . 1 2 . Builder 1 | . 1 . . . . . Watcher 2 | . 2 . . . . . Swarmer 7 | . 4 3 . . . . Grunt 9 | . 7 . . . 2 . Sentry 3 | . . . . . 2 1 Hunter 2 | . . . . . 2 . Assembled 7 | . . . . 7 . . Best Kill Streak 6 | . 4 3 . 6 2 1 Combat Bots Only 6 | . 4 3 . 6 2 1 Max Kills in Single Turn 3 | . 2 1 . 3 1 1 Gunslinging . | . . . . . . . Exploded 3 | . 1 . . 3 . . Melee . | . . . . . . . Uniques/NPCs Destroyed . | . . . . . . . Combat | -11 -10 -10 -10 -9 -8 -8 -------- Run | Yrd Mat Min Exi Min Mat Sto Hostile Shots Fired 255 | . 79 16 . 35 52 73 Missed 73 | . 24 6 . 10 12 21 Damage Taken 2450 | . 553 81 . 455 608 753 Core 760 | . 101 13 . 92 112 442 Absorbed by Shields . | . . . . . . . Core Remaining (%) 58 | 100 . . . 17 . . Volleys Fired 106 | . 55 8 . 7 28 8 Largest 2 | . 2 2 . 2 2 1 Hottest 83 | . 70 40 . 50 83 20 Shots Fired 186 | . 106 16 . 10 46 8 Gun 136 | . 106 16 . 8 6 . Cannon 40 | . . . . . 40 . Launcher 2 | . . . . 2 . . Special 8 | . . . . . . 8 Kinetic 136 | . 66 16 . 8 46 . Thermal 48 | . 40 . . . . 8 Explosive 2 | . . . . 2 . . Electromagnetic . | . . . . . . . Robot Hit Streak 11 | . 5 4 . 3 7 11 Robot Miss Streak 5 | . 5 3 . 3 3 1 Penetration Max . | . . . . . . . Secondary Targets 3 | . 2 1 . . . . Max Gunslinging Chain 1 | . 1 1 . . . . Shots Hit Robots 103 | . 49 8 . 4 35 7 Core Hits 69 | . 26 4 . 10 27 2 Critical Kills . | . . . . . . . Critical Parts Destroyed . | . . . . . . . Critical Strikes 4 | . 3 . . . . 1 Burn 3 | . 3 . . . . . Sever 1 | . . . . . . 1 Melee Attacks . | . . . . . . . Impact . | . . . . . . . Slashing . | . . . . . . . Piercing . | . . . . . . . Sneak Attacks . | . . . . . . . Combat Hostiles . | . . . . . . . Follow-up Attacks . | . . . . . . . Damage Inflicted 1741 | . 665 71 . 332 595 78 Guns 696 | . 583 71 . 19 23 . Cannons 572 | . . . . . 572 . Explosions 383 | . 70 . . 313 . . Melee . | . . . . . . . Ramming 12 | . 12 . . . . . Kinetic 1079 | . 394 71 . 19 595 . Thermal 267 | . 189 . . . . 78 Explosive 383 | . 70 . . 313 . . Electromagnetic . | . . . . . . . Impact . | . . . . . . . Slashing . | . . . . . . . Piercing . | . . . . . . . Highest Corruption 5 | . . . . 4 . 5 Average Corruption 4 | . . . . 4 . 4 Corruption Purged . | . . . . . . . Corruption Blocked . | . . . . . . . Effects 8 | . . . . 3 . 5 Message Errors 3 | . . . . 1 . 2 Matter Fused 1 | . . . . . . 1 Heat Flow Errors 3 | . . . . 2 . 1 Data Loss (minor) 1 | . . . . . . 1 Overload Shots . | . . . . . . . Overflow Damage 22 | . . . . 22 . . Projectiles . | . . . . . . . Explosions 22 | . . . . 22 . . Melee . | . . . . . . . Knockbacks 13 | . . . . . 13 . Impact . | . . . . . . . Kinetic 11 | . . . . . 11 . Secondary 2 | . . . . . 2 . Self-Inflicted Damage 79 | . . . . 79 . . Shots 2 | . . . . 2 . . Rammed . | . . . . . . . Targets Rammed 5 | . 5 . . . . . Kicked 5 | . 5 . . . . . Crushed . | . . . . . . . Highest Temperature 247 | . 222 . . 237 50 247 Average Temperature 62 | . 62 . . 88 22 111 Received Heat Transfer 800 | . 216 . . 80 216 288 Siege Activations . | . . . . . . . Robots Corrupted . | . . . . . . . Combat Hostiles . | . . . . . . . Parts Fried . | . . . . . . . Impact Corruptions . | . . . . . . . Robots Melted . | . . . . . . . Combat Hostiles . | . . . . . . . Parts Melted 1 | . 1 . . . . . Heat Transferred 1036 | . 777 . . . . 259 Parts Sabotaged . | . . . . . . . Parts Stolen . | . . . . . . . Parts Stripped . | . . . . . . . Power Chain Reactions . | . . . . . . . Alert | -11 -10 -10 -10 -9 -8 -8 ------- Run | Yrd Mat Min Exi Min Mat Sto Peak Influence 312 | . 312 125 . 9 165 125 Initial 65 | . . 55 . . . 65 Average 84 | . 148 120 . . 67 82 Maximum Alert Level 1 | . 1 . . . . . Low Security (%) 89 | 100 71 100 . 100 100 100 Level 1 10 | . 28 . . . . . Level 2 . | . . . . . . . Level 3 . | . . . . . . . Level 4 . | . . . . . . . Level 5 . | . . . . . . . High Security . | . . . . . . . Max Security . | . . . . . . . Squads Dispatched 5 | . 3 . . . 1 1 Investigation . | . . . . . . . Extermination . | . . . . . . . Reinforcement 5 | . 3 . . . 1 1 Assault . | . . . . . . . Garrison . | . . . . . . . Intercept . | . . . . . . . Searches Triggered . | . . . . . . . Construction Impeded . | . . . . . . . Haulers Reinforced . | . . . . . . . Active Scanning Responses . | . . . . . . . Cargo Convoy Interrupts . | . . . . . . . Stealth | -11 -10 -10 -10 -9 -8 -8 --------- Run | Yrd Mat Min Exi Min Mat Sto Distress Signals 2 | . 1 . . . . 1 Communications Jammed . | . . . . . . . Distress Signals . | . . . . . . . Times Spotted 53 | . 23 3 . 11 11 5 Peak Tracking Total 8 | . 6 2 . 8 5 5 Tactical Retreats 2 | . . . . 1 . 1 Traps | -11 -10 -10 -10 -9 -8 -8 ------- Run | Yrd Mat Min Exi Min Mat Sto Traps Triggered 3 | . . . . . . 3 Indirectly . | . . . . . . . Trap Hack Attempts . | . . . . . . . Triggered . | . . . . . . . Disarmed . | . . . . . . . Reprogrammed . | . . . . . . . Reused . | . . . . . . . Traps Extracted . | . . . . . . . Installed . | . . . . . . . Triggered . | . . . . . . . Machines | -11 -10 -10 -10 -9 -8 -8 ---------- Run | Yrd Mat Min Exi Min Mat Sto Machines Disabled 3 | . 3 . . . . . Max in Single Turn 3 | . 3 . . . . . Garrison Access 1 | . . . . . . 1 Machines Repaired . | . . . . . . . Machines Dismantled . | . . . . . . . Machines Sabotaged . | . . . . . . . Overloaded Fab Kills . | . . . . . . . Hacking | -11 -10 -10 -10 -9 -8 -8 --------- Run | Yrd Mat Min Exi Min Mat Sto Machines Accessed 7 | . 5 . . . 1 1 Terminals 4 | . 3 . . . 1 . Fabricators . | . . . . . . . Repair Stations . | . . . . . . . Recycling Units 2 | . 2 . . . . . Scanalyzers . | . . . . . . . Garrison Access 1 | . . . . . . 1 Total Hacks 15 | . 12 . . . 2 1 Successful 11 | . 8 . . . 2 1 Failed 4 | . 4 . . . . . Catastrophic . | . . . . . . . Database Lockouts . | . . . . . . . Manual . | . . . . . . . Terminals 10 | . 8 . . . 2 . Fabricators . | . . . . . . . Repair Stations . | . . . . . . . Recycling Units 4 | . 4 . . . . . Scanalyzers . | . . . . . . . Garrison Access 1 | . . . . . . 1 Terminal Hacks 6 | . 4 . . . 2 . Record 1 | . 1 . . . . . Alert Level 2 | . 1 . . . 1 . Hauler Manifests 1 | . 1 . . . . . Zone Layout 2 | . 1 . . . 1 . Fabricator Hacks . | . . . . . . . Repair Station Hacks . | . . . . . . . Recycling Unit Hacks 4 | . 4 . . . . . Report Inventory 2 | . 2 . . . . . Retrieve Components 2 | . 2 . . . . . Scanalyzer . | . . . . . . . Garrison Access Hacks 1 | . . . . . . 1 Seal Access 1 | . . . . . . 1 Unauthorized Hacks . | . . . . . . . Terminals . | . . . . . . . Fabricators . | . . . . . . . Repair Stations . | . . . . . . . Recycling Units . | . . . . . . . Scanalyzers . | . . . . . . . Garrison Access . | . . . . . . . Data Cores Recovered . | . . . . . . . Used . | . . . . . . . Hacking Detections 3 | . 3 . . . . . Full Trace Events . | . . . . . . . Feedback Events . | . . . . . . . Feedback Blocked . | . . . . . . . Robot Schematics Acquired . | . . . . . . . Robots Built . | . . . . . . . Authchips . | . . . . . . . Time . | . . . . . . . Total Robot Build Rating . | . . . . . . . Part Schematics Acquired . | . . . . . . . Parts Built . | . . . . . . . Authchips . | . . . . . . . Time . | . . . . . . . Total Part Build Rating . | . . . . . . . Parts Repaired . | . . . . . . . Time . | . . . . . . . Parts Recycled . | . . . . . . . Recycled Matter . | . . . . . . . Retrieved Matter . | . . . . . . . Retrieved Components 12 | . 12 . . . . . Parts Scanalyzed . | . . . . . . . Part Schematics Acquired . | . . . . . . . Parts Damaged . | . . . . . . . Bothacking | -11 -10 -10 -10 -9 -8 -8 ------------ Run | Yrd Mat Min Exi Min Mat Sto Used RIF Installer . | . . . . . . . Robots Hacked . | . . . . . . . Non-combat . | . . . . . . . Combat . | . . . . . . . Robot Hacks Applied . | . . . . . . . Relay Couplers Released . | . . . . . . . Fabnet Peak Effective % . | . . . . . . . Robots Rewired . | . . . . . . . Allies Hacked . | . . . . . . . Hacks Repelled . | . . . . . . . Allies | -11 -10 -10 -10 -9 -8 -8 -------- Run | Yrd Mat Min Exi Min Mat Sto Total Allies . | . . . . . . . Largest Group . | . . . . . . . Highest-Rated Group . | . . . . . . . Highest-Rated Ally . | . . . . . . . Total Orders . | . . . . . . . Ally Attacks . | . . . . . . . Total Damage . | . . . . . . . Kills . | . . . . . . . Allies Corrupted . | . . . . . . . Allies Melted . | . . . . . . . Intel | -11 -10 -10 -10 -9 -8 -8 ------- Run | Yrd Mat Min Exi Min Mat Sto Robot Analysis Total . | . . . . . . . Derelict Logs Recovered . | . . . . . . . Drone Launches . | . . . . . . . Drone Recoveries . | . . . . . . . Exploration | -11 -10 -10 -10 -9 -8 -8 ------------- Run | Yrd Mat Min Exi Min Mat Sto Turns Passed 2016 | 41 695 140 202 487 222 229 Spaces Moved 1435 | 28 411 95 169 361 128 243 Core 233 | 6 . . . . 11 216 Treads . | . . . . . . . Legs 1030 | 22 411 95 169 333 . . Wheels 172 | . . . . 28 117 27 Hover . | . . . . . . . Flight . | . . . . . . . Fastest Speed 50 | 50 120 120 120 100 50 50 Average Speed 110 | 105 120 120 120 118 100 78 Slowest Speed 200 | 120 120 120 120 120 200 150 Overloaded Moves . | . . . . . . . Propulsion Burnouts . | . . . . . . . Robots Hopped . | . . . . . . . Cave-ins Triggered . | . . . . . . . Exploration Rate (%) 35 | 3 70 29 29 78 11 26 Regions Visited 6 Branch Regions 4 Pre-discovered Areas . | . . . . . . . Known Exits Taken 5 | . 1 1 1 1 1 . Unknown Exits Taken 1 | 1 . . . . . . Scrap Searched . | . . . . . . . Spaces Dug . | . . . . . . . Terrain Destroyed 17 | . 5 . . 11 1 . Melee . | . . . . . . . Projectile 1 | . . . . . 1 . AOE 16 | . 5 . . 11 . . Terrain Rammed . | . . . . . . . Walls Destroyed . | . . . . . . . Machines Disabled . | . . . . . . . Actions | -11 -10 -10 -10 -9 -8 -8 --------- Run | Yrd Mat Min Exi Min Mat Sto Total 1680 | 40 512 108 168 410 176 266 Wait 51 | . 7 . . 31 10 3 Move 1429 | 27 410 94 168 360 127 243 Hop . | . . . . . . . Pick Up 37 | 6 14 2 . 5 5 5 Fast Attach . | . . . . . . . Attach 26 | 6 4 . . 3 6 7 Detach . | . . . . . . . Swap 15 | . 10 2 . 3 . . Drop 11 | 1 7 2 . 1 . . Fire 106 | . 55 8 . 7 28 8 Melee . | . . . . . . . Ram . | . . . . . . . Kick 5 | . 5 . . . . . Crush . | . . . . . . . Escape Stasis . | . . . . . . . Rewire . | . . . . . . . Trap . | . . . . . . . Miscellaneous . | . . . . . . . Route ------- -11/Scrapyard -10/Materials (discovered 4 exits: [*Mat x2] / *Min x2) -10/Mines -10/Exiles -9/Mines -8/Materials (discovered 2 exits: *Sto x2) -8/Storage History --------- Turn | Location | Event 18 | -11/Scrapyard | Discovered new exit (range 16) 42 | -11/Scrapyard | Entered Materials 167 | -10/Materials | Discovered new exit (range 17) 335 | -10/Materials | Discovered new exit (range 16) 433 | -10/Materials | Discovered new exit (range 9) 529 | -10/Materials | Build established: Scavenger-Mutant 552 | -10/Materials | Discovered new exit (range 13) 736 | -10/Materials | Identified exit to Mines 737 | -10/Materials | Entered Mines 872 | -10/Mines | Deemed a non-threat by the Exiles lab entrance 872 | -10/Mines | Discovered new exit (range 5) 876 | -10/Mines | Identified exit to Exiles 877 | -10/Mines | Entered Exiles 895 | -10/Exiles | Discovered new exit (range 15) 912 | -10/Exiles | Identified exit to Mines 937 | -10/Exiles | Met 8R-AWN 958 | -10/Exiles | Met EX-HEX 1079 | -10/Exiles | Entered Mines 1122 | -9/Mines | YI-UF0 nonchalantly dropped a Grenade Launcher on the ground 1316 | -9/Mines | Assembled infested the area 1444 | -9/Mines | Core integrity fell below 50% 1483 | -9/Mines | Lost 4 parts (1p1n1u1w) 1544 | -9/Mines | Discovered new exit (range 6) 1557 | -9/Mines | Core integrity fell below 20% 1565 | -9/Mines | Identified exit to Materials 1566 | -9/Mines | Entered Materials 1566 | -8/Materials | Evolved 4 slots: Power x1, Utility x2, Weapon x1 1570 | -8/Materials | Discovered new exit (range 14) 1746 | -8/Materials | Discovered new exit (range 7) 1783 | -8/Materials | Identified exit to Storage 1788 | -8/Materials | Entered Storage 1817 | -8/Storage | Lost 4 parts (1n1u2w) 1929 | -8/Storage | Lost 3 parts (1p2u) 1973 | -8/Storage | Core integrity fell below 50% 2008 | -8/Storage | Core integrity fell below 20% 2017 | -8/Storage | Destroyed by Y-45 Defender with Beam Rifle Last Messages --------------- 01930_ System corrupted: Heat flow error (+278). 01946_ K-01 Serf collects debris. 01947_ Acquired 98 matter. 01947_ K-01 Serf collects debris. 01949_ Acquired Arm. Wheel. 01953_ Acquired Plasma Cutter. 01961_ Acquired Imp. Datajack. 01962_ 5RZ2,KJIJNC59QU/LZ&7RZ0T|6L JV#9>EBFW5 01977_ Y-45 Defender Lgt. Armor Plating severed. 01983_ Y-45 Defender destroyed. 01985_ System corrupted: Component data lost. 01988_ Imp. Datajack destroyed. 01997_ Plasma Cutter destroyed. 01998_ Acquired 58 matter. 02000_ Acquired Imp. Ion Engine. 02004_ Critical hit (Burn: +37). 02007_ Z7XXSQA7XOF3VY 24CY%& BJXF %LVJFRLSPJ 02007_ Arm. Wheel destroyed. 02011_ Imp. Ion Engine destroyed. 02017_ Critical hit (Burn: +37). Map ----- +----------------------------------------------------+ | ????????????????????????????####?????#???????????? | | ????????????????????????????# """"" ???????????? | | ???????????????????????????? """"" ""???????????? | | ????????????????????????????# """"" T"???????????? | | ????????????????????????????# "????????????? | | ??????????????###???????????# ?????????????? | | ??????????????# #######?????# ??????????????? | | ????????????### #?????# ???????????????? | | ????????????#"" """" ####### ????????????????? | | ????????????#"" """" ## ##+#########+###???##? | | ????????????#"T """" ## #? | | ????????????#"" """ ## +? | | ????????????#"" ## ### ##########???# #? | | ????????????### """" ### ##?# #????????????# #? | | ??????????????# """" #?# #??# #???????###??# #? | | ??????????????# """" #?# #??# ######### #### #? | | ??????????????# """" #?# #??# + # +? | | ??????????????# ### ##?# ### """ # #? | | ???????????"####+####### #?# #?# """ # ## | | ???????????" #?# #?# """ # | | ???????????" T #?# #?# + | | ???????????"#T##+####### #?# #?# """ # | | ????????????### ######### #?# """ ###### | | ??????????????# # # #?# """ #????? | | ??????????????# # Y#[ #?# #????? | | ??????????????# # @ Y/! #?####" "###????? | | ??????????????# # Y#= #????#"R"#??????? | | ??????????????#""" # ####????#"""???????? | | ??????????????#""" # #???????####???????? | | ??????????????#""" # #??????????????????? | | ??????????????#""" # #??????????????????? | | ??????????????#""" # #??????????????????? | | ??????????????# #########??????????????????? | | ??????????????#########??????????????????????????? | | | | | | | | | | | | | | | | | | | | | | | | | | | | | | | | | +----------------------------------------------------+ Best States ------------- Heat Dissipation 41 Energy Generation 12 Energy Capacity 265 Matter Stores 300 Matter Capacity 300 Sight Range 16 Terrain Scan Range 14 Terrain Scan Density 185 Evasion (%) 55 Targeting Accuracy 8 Item Schematics ----------------- None Robot Schematics ------------------ None Fabricated ------------ Nothing Alien Tech Used ----------------- None Achievements -------------- None Challenges ------------ None Game ------ Seed SpliceFrostMace Manual? 0 Play Time 00:31:01 Cumulative 4.8 hours Start 2024.04.01 @ 19:51:20 End 2024.04.01 @ 21:10:22 Sessions 1 Manual Loads 0 Difficulty Rogue Special Mode None Game No. 11 Rogue 5 Adventurer 6 Explorer 0 Win Type - Total 0 Types 0/0/0/0/0/0/0/0/0 Lore% 4 Gallery% 12 Achievement% 10 Wizard Run 0 Options --------- Layout 1 ASCII 0 Keyboard 0 Movement Mouse Keybinds 0 Fullscreen 2 Font 24/Crisp Map View 50x35 Zoom Use 0% Tactical HUD 1 Map Filters NONE Filters NONE Steam 1 RUN: 800599ac-6187-4baa-84b1-1021643fca84